fUST/lending_fUST_20250118
["ID","MTS","AMOUNT","RATE_DAILY","PERIOD"]
[349429458,1737175856069,-157.93,0.00023464,2]
[349429459,1737175856079,-500.0,0.00023522,2]
[349429460,1737175856088,-688.41403785,0.00023522,2]
[349429461,1737175856098,-1000.0,0.00023531,2]
[349429462,1737175856107,-849.6615485,0.00023535,2]
[349429463,1737175856117,-1004.506207,0.00023558,2]
[349429464,1737175856126,-151.0,0.00023561,7]
[349429465,1737175856135,-223.834064,0.00023561,7]
[349429466,1737175856145,-151.0,0.00023561,7]
[349429467,1737175856155,-151.0,0.00023561,7]
[349429468,1737175856164,-263.894382,0.00023561,7]
[349429469,1737175856174,-263.894382,0.00023561,7]
[349429470,1737175856184,-151.0,0.00023561,7]
[349429471,1737175856193,-183.755612,0.00023561,7]
[349429473,1737175856202,-212.148039,0.00023561,2]
[349429475,1737175856212,-622.918212,0.00023561,7]
[349429477,1737175856222,-500.0,0.00023561,3]
[349429479,1737175856231,-622.918212,0.00023561,7]
[349429481,1737175856240,-339.997652,0.00023561,7]
[349429483,1737175856250,-339.997652,0.00023561,7]
[349429485,1737175856260,-554.22,0.00023561,2]
[349429487,1737175856270,-3882.32,0.00023561,3]
[349429490,1737175856281,-801.45,0.00023561,3]
[349429492,1737175856291,-500.0,0.00023561,3]
[349429494,1737175856300,-963.39,0.00023561,3]
[349429496,1737175856310,-500.0,0.00023561,3]
[349429498,1737175856320,-500.0,0.00023561,3]
[349429500,1737175856329,-1052.98,0.00023561,3]
[349429502,1737175856338,-3446.75,0.00023561,3]
[349429504,1737175856348,-819.57,0.00023561,3]
[349429506,1737175856357,-9684.6,0.00023561,3]
[349429508,1737175856367,-808.76,0.00023561,3]
[349429510,1737175856376,-879.84,0.00023561,3]
[349429512,1737175856385,-500.0,0.00023561,3]
[349429513,1737175856395,-647.95200232,0.00023561,3]
[349429516,1737175856404,-500.0,0.00023561,3]
[349429517,1737175856414,-500.0,0.00023561,3]
[349429519,1737175856424,-500.0,0.00023561,3]
[349429521,1737175856433,-500.0,0.00023561,3]
[349429524,1737175856443,-1270.27,0.00023561,3]
[349429526,1737175856453,-500.0,0.00023561,3]
[349429527,1737175856463,-1276.4,0.00023561,3]
[349429530,1737175856473,-2298.27,0.00023561,3]
[349429532,1737175856483,-159.11,0.00023561,2]
[349429533,1737175856493,-742.92515372,0.00023577,2]
[349429535,1737175856504,-152.49,0.000236,31]
[349429537,1737175856514,-152.49,0.000236,31]
[349429539,1737175856523,-152.49,0.000236,31]
[349429542,1737175856535,-152.49,0.000236,31]
[349429543,1737175856544,-152.49,0.000236,31]
[349429545,1737175856554,-152.49,0.000236,31]
[349429547,1737175856563,-152.49,0.000236,31]
[349429549,1737175856574,-1000.0,0.000236,2]
[349429551,1737175856584,-1008.041611,0.000236,7]
[349429553,1737175856594,-1008.041612,0.000236,7]
[349429555,1737175856603,-1000.0,0.00023622,2]
[349429558,1737175856613,-151.0,0.00023682,7]
[349429560,1737175856623,-390.396434,0.00023682,7]
[349429561,1737175856632,-390.396434,0.00023682,7]
[349429564,1737175856642,-151.0,0.00023682,7]
[349429566,1737175856652,-500.0,0.00023698,3]
[349429567,1737175856663,-158.05882,0.00023698,7]
[349429569,1737175856672,-158.058826,0.00023698,7]
[349429572,1737175856682,-151.0,0.00023698,7]
[349429574,1737175856691,-151.0,0.00023698,7]
[349429576,1737175856701,-3882.32,0.00023698,3]
[349429578,1737175856710,-3456.046116,0.00023698,7]
[349429580,1737175856719,-801.45,0.00023698,3]
[349429582,1737175856728,-3456.046116,0.00023698,7]
[349429584,1737175856738,-500.0,0.00023698,3]
[349429586,1737175856747,-963.39,0.00023698,3]
[349429588,1737175856756,-151.0,0.00023698,7]
[349429590,1737175856766,-192.518241,0.00023698,7]
[349429592,1737175856775,-192.518243,0.00023698,7]
[349429594,1737175856785,-1643.085378,0.00023698,7]
[349429595,1737175856794,-500.0,0.00023698,3]
[349429597,1737175856804,-1643.085382,0.00023698,7]
[349429600,1737175856813,-428.75220141,0.00023698,3]
[349429602,1737175856823,-1052.98,0.00023698,3]
[349429604,1737175856832,-3446.75,0.00023698,3]
[349429605,1737175856842,-676.182093,0.00023698,7]
[349429607,1737175856851,-819.57,0.00023698,3]
[349429610,1737175856861,-9684.6,0.00023698,3]
[349429611,1737175856870,-676.182091,0.00023698,7]
[349429614,1737175856880,-151.0,0.00023698,7]
[349429616,1737175856890,-808.76,0.00023698,3]
[349429618,1737175856899,-151.0,0.00023698,7]
[349429620,1737175856908,-879.84,0.00023698,3]
[349429621,1737175856917,-500.0,0.00023698,3]
[349429624,1737175856927,-511.234499,0.00023698,7]
[349429626,1737175856936,-511.234505,0.00023698,7]
[349429628,1737175856946,-202.6262724,0.00023698,3]
[349429630,1737175856956,-500.0,0.00023698,3]
[349429631,1737175856965,-169.518072,0.00023698,7]
[349429633,1737175856975,-169.518062,0.00023698,7]
[349429635,1737175856985,-500.0,0.00023698,3]
[349429637,1737175856995,-500.0,0.00023698,3]
[349429640,1737175857005,-1270.27,0.00023698,3]
[349429642,1737175857014,-500.0,0.00023698,3]
[349429644,1737175857024,-1276.4,0.00023698,3]
[349429646,1737175857035,-2298.27,0.00023698,3]
[349429647,1737175857044,-1667.0,0.000237,2]
[349429649,1737175857053,-742.92515372,0.00023729,2]
[349429652,1737175857065,-816.57357159,0.00023729,2]
[349429654,1737175857075,-1028.00813459,0.00023767,36]
[349429656,1737175857085,-151.0,0.00023772,2]
[349429658,1737175857094,-839616.65110465,0.0002378,10]
[349429660,1737175857103,-151.0,0.0002378,7]
[349429662,1737175857112,-151.0,0.0002378,7]
[349429664,1737175857121,-151.0,0.0002378,7]
[349429666,1737175857130,-263.894382,0.0002378,7]
[349429668,1737175857140,-263.894382,0.0002378,7]
[349429670,1737175857150,-151.0,0.0002378,7]
[349429672,1737175857160,-151.0,0.0002378,7]
[349429674,1737175857169,-390.396434,0.0002378,7]
[349429676,1737175857179,-390.396434,0.0002378,7]
[349429687,1737175857271,-622.918212,0.0002378,7]
[349429689,1737175857283,-622.918215,0.0002378,7]
[349429691,1737175857293,-151.0,0.0002378,7]
[349429693,1737175857303,-339.997652,0.0002378,7]
[349429695,1737175857312,-339.99765,0.0002378,7]
[349429697,1737175857322,-500.0,0.0002378,2]
[349429699,1737175857332,-411.70934866,0.0002378,2]
[349429701,1737175857341,-500.0,0.0002378,2]
[349429703,1737175857351,-4403.35,0.000238,14]
[349429705,1737175857361,-500.0,0.00023802,14]
[349429707,1737175857371,-500.0,0.00023802,14]
[349429709,1737175857380,-500.0,0.00023802,14]
[349429711,1737175857390,-500.0,0.00023802,14]
[349429713,1737175857399,-263.894382,0.0002381,7]
[349429715,1737175857409,-263.894382,0.0002381,7]
[349429717,1737175857419,-263.894382,0.0002381,7]
[349429719,1737175857428,-263.894388,0.0002381,7]
[349429721,1737175857438,-151.0,0.0002381,7]
[349429723,1737175857447,-151.0,0.0002381,7]
[349429725,1737175857456,-151.0,0.0002381,7]
[349429727,1737175857465,-390.396434,0.0002381,7]
[349429729,1737175857475,-390.396424,0.0002381,7]
[349429730,1737175857484,-151.0,0.0002381,7]
[349429732,1737175857497,-151.0,0.00023821,7]
[349429734,1737175857506,-151.0,0.00023821,7]
[349429737,1737175857516,-151.0,0.00023821,7]
[349429738,1737175857525,-151.0,0.00023821,7]
[349429740,1737175857537,-151.0,0.00023821,7]
[349429742,1737175857546,-180.430181,0.00023821,7]
[349429745,1737175857555,-151.0,0.00023821,7]
[349429747,1737175857566,-151.0,0.00023821,7]
[349429749,1737175857575,-151.0,0.00023821,7]
[349429750,1737175857584,-151.0,0.00023821,7]
[349429752,1737175857593,-151.0,0.00023821,7]
[349429754,1737175857603,-151.0,0.00023821,7]
[349429756,1737175857612,-151.0,0.00023821,7]
[349429759,1737175857622,-290.646976,0.00023821,7]
[349429760,1737175857632,-1322.0,0.00023823,4]
[349429763,1737175857641,-207569.90865954,0.00023829,61]
[349429778,1737175857774,-6095.35396964,0.00023829,61]
[349429785,1737175857839,-395.0,0.00022189,2]
[349429787,1737175857848,-8947.07792414,0.00023829,61]
[349429789,1737175857860,-21013.03747551,0.00023829,61]
[349429792,1737175857872,-5765.59536499,0.00023829,61]
[349429794,1737175857883,-543.91473344,0.00023829,61]
[349429805,1737175857978,-774.4157208,0.00023829,61]
[349431644,1737175954162,555.0,0.00025,120]
[349431645,1737175983235,572.0,0.00025,120]
[349431647,1737176360948,163.398977,0.00013973,2]
[349431648,1737176384331,500.0,0.0002,2]
[349431693,1737177032256,-300.0,0.00020642,2]
[349431694,1737177032265,-163.2401,0.00020643,2]
[349431695,1737177032277,-710.17380002,0.00020643,2]
[349431696,1737177032316,-12179.48373188,0.00020643,2]
[349431697,1737177032325,-203.135549,0.00020662,2]
[349431698,1737177032335,-45.93100887,0.0002068,2]
[349431699,1737177032428,-286.25700153,0.0002068,2]
[349431700,1737177032438,-945.0,0.00021488,2]
[349431701,1737177032448,-3000.0,0.000216,2]
[349431702,1737177032457,-1570.67632247,0.0002161,2]
[349431703,1737177032469,-1429.32367753,0.0002161,2]
[349431704,1737177032479,-1314.45033643,0.0002162,2]
[349431705,1737177032495,-1685.54966357,0.0002162,2]
[349431706,1737177032505,-3000.0,0.0002163,2]
[349431707,1737177032513,-840.09135838,0.0002164,2]
[349431713,1737177038059,-2159.90864162,0.0002164,2]
[349431714,1737177038069,-3000.0,0.0002165,2]
[349431715,1737177038080,-3000.0,0.0002166,2]
[349431716,1737177038090,-3000.0,0.0002167,2]
[349431717,1737177038099,-3000.0,0.0002168,2]
[349431718,1737177038108,-3000.0,0.0002169,2]
[349431719,1737177038118,-3000.0,0.000217,2]
[349431720,1737177038128,-3522.117654,0.0002171,2]
[349431721,1737177038138,-3000.0,0.00021817,2]
[349431722,1737177038149,-175.17562905,0.00021817,2]
[349431723,1737177038159,-220.36160955,0.000219,3]
[349431724,1737177038169,-1362.43,0.00021907,3]
[349431725,1737177038179,-4738.42,0.00021907,3]
[349431726,1737177038189,-9903.58,0.00021907,3]
[349431727,1737177038198,-4951.79,0.00021907,3]
[349431728,1737177038207,-2475.9,0.00021907,3]
[349431729,1737177038217,-1237.95,0.00021907,3]
[349431730,1737177038226,-1031.62,0.00021907,3]
[349431731,1737177038236,-500.0,0.00021917,3]
[349431732,1737177038245,-500.0,0.00021917,3]
[349431733,1737177038256,-437.23220082,0.00021917,2]
[349431734,1737177038267,-500.0,0.00021917,3]
[349431735,1737177038277,-189.3229492,0.00021917,2]
[349431736,1737177038286,-500.0,0.00021917,3]
[349431737,1737177038296,-500.0,0.00021917,3]
[349431738,1737177038305,-500.0,0.00021917,3]
[349431739,1737177038315,-500.0,0.00021917,3]
[349431740,1737177038325,-500.0,0.00021917,3]
[349431741,1737177038335,-500.0,0.00021917,3]
[349431742,1737177038346,-500.0,0.00021917,3]
[349431743,1737177038356,-500.0,0.00021917,3]
[349431744,1737177038366,-500.0,0.00021917,3]
[349431745,1737177038375,-500.0,0.00021917,3]
[349431746,1737177038384,-603.17,0.00021917,3]
[349431747,1737177038394,-500.0,0.00021917,3]
[349431748,1737177038403,-500.0,0.00021917,3]
[349431749,1737177038413,-500.0,0.00021917,3]
[349431750,1737177038423,-500.0,0.00021917,3]
[349431751,1737177038432,-500.0,0.00021917,3]
[349431752,1737177038442,-500.0,0.00021917,3]
[349431753,1737177038452,-500.0,0.00021917,3]
[349431754,1737177038461,-500.0,0.00021917,3]
[349431755,1737177038471,-500.0,0.00021917,3]
[349431756,1737177038481,-500.0,0.00021917,3]
[349431757,1737177038491,-500.0,0.00021917,3]
[349431758,1737177038501,-500.0,0.00021917,3]
[349431759,1737177038511,-215.60838217,0.00021917,3]
[349431760,1737177038521,-500.0,0.00021917,3]
[349431761,1737177038531,-500.0,0.00021917,3]
[349431762,1737177038541,-395.27761335,0.00021917,3]
[349431763,1737177038553,-500.0,0.00021917,3]
[349431764,1737177038563,-500.0,0.00021917,3]
[349431765,1737177038573,-500.0,0.00021917,2]
[349431766,1737177038582,-628.3,0.00021917,3]
[349431767,1737177038592,-500.0,0.00021917,3]
[349431768,1737177038601,-500.0,0.00021917,3]
[349431769,1737177038610,-500.0,0.00021917,3]
[349431770,1737177038619,-500.0,0.00021917,3]
[349431771,1737177038627,-500.0,0.00021917,3]
[349431772,1737177038636,-500.0,0.00021917,3]
[349431773,1737177038646,-500.0,0.00021917,3]
[349431774,1737177038655,-500.0,0.00021917,3]
[349431775,1737177038664,-499.0,0.00021917,2]
[349431776,1737177038674,-4035.25,0.00021917,3]
[349431777,1737177038683,-1436.15,0.00021917,3]
[349431778,1737177038693,-500.0,0.00021917,3]
[349431779,1737177038702,-500.0,0.00021917,3]
[349431780,1737177038711,-500.0,0.00021917,3]
[349431781,1737177038721,-500.0,0.00021917,3]
[349431782,1737177038730,-1989.67,0.00021917,3]
[349431783,1737177038739,-580.45,0.00021917,3]
[349431784,1737177038750,-500.0,0.00021917,3]
[349431785,1737177038759,-500.0,0.00021917,3]
[349431786,1737177038768,-500.0,0.00021917,3]
[349431787,1737177038778,-500.0,0.00021917,2]
[349431788,1737177038787,-500.0,0.00021917,3]
[349431789,1737177038798,-500.0,0.00021917,3]
[349431790,1737177038807,-500.0,0.00021917,3]
[349431791,1737177038817,-500.0,0.00021917,3]
[349431792,1737177038826,-500.0,0.00021917,3]
[349431793,1737177038836,-500.0,0.00021917,3]
[349431794,1737177038846,-621.23,0.00021917,3]
[349431795,1737177038860,-500.0,0.00021917,3]
[349431796,1737177038869,-500.0,0.00021917,3]
[349431797,1737177038879,-500.0,0.00021917,3]
[349431798,1737177038889,-500.0,0.00021917,3]
[349431799,1737177038899,-500.0,0.00021917,3]
[349431800,1737177038908,-500.0,0.00021917,3]
[349431801,1737177038918,-500.0,0.00021917,3]
[349431802,1737177038929,-500.0,0.00021917,3]
[349431803,1737177038939,-500.0,0.00021917,3]
[349431804,1737177038950,-500.0,0.00021917,3]
[349431805,1737177038959,-529.28,0.00021917,3]
[349431806,1737177038969,-500.0,0.00021917,3]
[349431807,1737177038978,-500.0,0.00021917,3]
[349431808,1737177038988,-957.61,0.00021917,3]
[349431809,1737177038997,-530.86,0.00021917,3]
[349431810,1737177039007,-500.0,0.00021917,2]
[349431811,1737177039018,-500.0,0.00021917,3]
[349431812,1737177039028,-500.0,0.00021917,3]
[349431813,1737177039037,-500.0,0.00021917,3]
[349431814,1737177039049,-1617.64,0.00021917,3]
[349431815,1737177039058,-500.0,0.00021917,3]
[349431816,1737177039068,-621.49,0.00021917,3]
[349431817,1737177039078,-308.99648245,0.00021917,3]
[349431818,1737177039088,-500.0,0.00021917,3]
[349431819,1737177039097,-531.83,0.00021917,3]
[349431820,1737177039106,-500.0,0.00021917,3]
[349431821,1737177039116,-500.0,0.00021917,3]
[349431822,1737177039125,-401.36,0.00022054,3]
[349431823,1737177039135,-639.41,0.00022054,3]
[349431824,1737177039145,-153.41,0.00022054,3]
[349431825,1737177039154,-252.14,0.00022054,3]
[349431826,1737177039164,-168.72,0.00022054,3]
[349431827,1737177039173,-500.0,0.00022054,3]
[349431828,1737177039183,-500.0,0.00022054,3]
[349431829,1737177039192,-227.99095145,0.00022054,3]
[349431830,1737177039201,-500.0,0.00022054,2]
[349431831,1737177039211,-500.0,0.00022054,3]
[349431832,1737177039220,-500.0,0.00022054,3]
[349431833,1737177039230,-500.0,0.00022054,3]
[349431834,1737177039239,-500.0,0.00022054,3]
[349431835,1737177039249,-4035.25,0.00022054,3]
[349431836,1737177039258,-1436.15,0.00022054,3]
[349431837,1737177039267,-500.0,0.00022054,3]
[349431838,1737177039277,-500.0,0.00022054,3]
[349431839,1737177039287,-1989.67,0.00022054,3]
[349431840,1737177039297,-167.41716348,0.00022054,3]
[349431841,1737177039306,-205.75,0.00022054,3]
[349431842,1737177039316,-500.0,0.00022054,3]
[349431843,1737177039325,-500.0,0.00022054,3]
[349431844,1737177039334,-500.0,0.00022054,3]
[349431845,1737177039343,-500.0,0.00022054,3]
[349431846,1737177039352,-500.0,0.00022054,3]
[349431847,1737177039361,-500.0,0.00022054,3]
[349431848,1737177039371,-500.0,0.00022054,3]
[349431849,1737177039381,-500.0,0.00022054,3]
[349431850,1737177039391,-529.28,0.00022054,3]
[349431851,1737177039400,-500.0,0.00022054,3]
[349431852,1737177039409,-957.61,0.00022054,3]
[349431853,1737177039419,-500.0,0.00022054,2]
[349431854,1737177039428,-461.04,0.00022054,3]
[349431855,1737177039437,-530.9980873,0.00022054,3]
[349431856,1737177039447,-1617.64,0.00022054,3]
[349431857,1737177039456,-500.0,0.00022054,3]
[349431858,1737177039465,-531.83,0.00022054,3]
[349431859,1737177039475,-500.0,0.00022191,3]
[349431860,1737177039485,-424.88138037,0.00022191,3]
[349431861,1737177039494,-500.0,0.00022191,2]
[349431862,1737177039504,-500.0,0.00022191,3]
[349431863,1737177039513,-500.0,0.00022191,3]
[349431864,1737177039522,-500.0,0.00022191,3]
[349431865,1737177039531,-500.0,0.00022191,3]
[349431866,1737177039540,-4035.25,0.00022191,3]
[349431867,1737177039550,-1436.15,0.00022191,3]
[349431868,1737177039559,-500.0,0.00022191,3]
[349431869,1737177039570,-500.0,0.00022191,3]
[349431870,1737177039580,-1989.67,0.00022191,3]
[349431871,1737177039589,-500.0,0.00022191,3]
[349431873,1737177039599,-500.0,0.00022191,3]
[349431874,1737177039608,-500.0,0.00022191,3]
[349431875,1737177039617,-500.0,0.00022191,3]
[349431876,1737177039627,-500.0,0.00022191,3]
[349431877,1737177039636,-500.0,0.00022191,3]
[349431878,1737177039645,-500.0,0.00022191,3]
[349431879,1737177039655,-500.0,0.00022191,3]
[349431880,1737177039667,-529.28,0.00022191,3]
[349431881,1737177039677,-500.0,0.00022191,3]
[349431882,1737177039686,-957.61,0.00022191,3]
[349431883,1737177039695,-500.0,0.00022191,2]
[349431884,1737177039704,-1617.64,0.00022191,3]
[349431885,1737177039714,-230.85,0.00022191,3]
[349431887,1737177039723,-531.83,0.00022191,3]
[349431889,1737177039732,-356.63,0.000222,2]
[349431890,1737177039741,-500.0,0.00022328,3]
[349431891,1737177039750,-500.0,0.00022328,2]
[349431892,1737177039760,-500.0,0.00022328,3]
[349431893,1737177039769,-500.0,0.00022328,3]
[349431894,1737177039779,-500.0,0.00022328,3]
[349431895,1737177039789,-500.0,0.00022328,3]
[349431896,1737177039800,-4035.25,0.00022328,3]
[349431897,1737177039810,-1436.15,0.00022328,3]
[349431898,1737177039819,-500.0,0.00022328,3]
[349431899,1737177039829,-500.0,0.00022328,3]
[349431900,1737177039837,-1989.67,0.00022328,3]
[349431901,1737177039856,-500.0,0.00022328,3]
[349431902,1737177039867,-500.0,0.00022328,3]
[349431903,1737177039877,-500.0,0.00022328,3]
[349431904,1737177039887,-500.0,0.00022328,3]
[349431905,1737177039896,-500.0,0.00022328,3]
[349431907,1737177039905,-500.0,0.00022328,3]
[349431909,1737177039914,-500.0,0.00022328,3]
[349431910,1737177039923,-500.0,0.00022328,3]
[349431911,1737177039932,-529.28,0.00022328,3]
[349431912,1737177039942,-230.34813191,0.00022328,3]
[349431913,1737177039952,-356.22312452,0.00022328,3]
[349431914,1737177039966,-601.38687548,0.00022328,3]
[349431915,1737177039976,-500.0,0.00022328,2]
[349431916,1737177039985,-1617.64,0.00022328,3]
[349431917,1737177039995,-531.83,0.00022328,3]
[349431918,1737177040003,-2067.0,0.00022417,2]
[349431919,1737177040013,-536.0,0.00022417,2]
[349431920,1737177040022,-2309.0,0.00022417,2]
[349431921,1737177040032,-420.0,0.00022462,2]
[349431922,1737177040041,-500.0,0.00022465,3]
[349431923,1737177040054,-505.74780256,0.00022465,2]
[349431924,1737177040063,-500.0,0.00022465,3]
[349431925,1737177040072,-500.0,0.00022465,3]
[349431926,1737177040081,-567.41288792,0.00022465,3]
[349431927,1737177040090,-500.0,0.00022465,3]
[349431928,1737177040099,-4035.25,0.00022465,3]
[349431929,1737177040108,-1436.15,0.00022465,3]
[349431930,1737177040117,-500.0,0.00022465,3]
[349431931,1737177040126,-500.0,0.00022465,3]
[349431932,1737177040135,-1989.67,0.00022465,3]
[349431933,1737177040145,-500.0,0.00022465,3]
[349431934,1737177040154,-500.0,0.00022465,3]
[349431935,1737177040163,-500.0,0.00022465,3]
[349431936,1737177040172,-500.0,0.00022465,3]
[349431937,1737177040181,-500.0,0.00022465,3]
[349431938,1737177040190,-500.0,0.00022465,3]
[349431939,1737177040199,-500.0,0.00022465,3]
[349431940,1737177040208,-500.0,0.00022465,3]
[349431941,1737177040217,-529.28,0.00022465,3]
[349431942,1737177040227,-957.61,0.00022465,3]
[349431943,1737177040240,-500.0,0.00022465,2]
[349431944,1737177040249,-1617.64,0.00022465,3]
[349431945,1737177040258,-531.83,0.00022465,3]
[349431946,1737177040267,-163.11587406,0.00022601,2]
[349431947,1737177040276,-197.50448208,0.00022601,2]
[349431948,1737177040286,-336.66196258,0.00022601,2]
[349431949,1737177040297,-500.0,0.00022601,2]
[349431950,1737177040306,-185.56447416,0.00022601,2]
[349431951,1737177040315,-199.69696037,0.00022601,2]
[349431952,1737177040324,-291.5505971,0.00022602,3]
[349431953,1737177040334,-500.0,0.00022602,3]
[349431954,1737177040343,-500.0,0.00022602,3]
[349431955,1737177040352,-500.0,0.00022602,3]
[349431956,1737177040361,-4035.25,0.00022602,3]
[349431957,1737177040370,-1436.15,0.00022602,3]
[349431958,1737177040379,-500.0,0.00022602,3]
[349431959,1737177040388,-500.0,0.00022602,3]
[349431960,1737177040398,-1989.67,0.00022602,3]
[349431961,1737177040407,-500.0,0.00022602,3]
[349431962,1737177040416,-500.0,0.00022602,3]
[349431963,1737177040425,-500.0,0.00022602,3]
[349431964,1737177040434,-500.0,0.00022602,3]
[349431965,1737177040444,-500.0,0.00022602,3]
[349431966,1737177040454,-500.0,0.00022602,3]
[349431967,1737177040463,-500.0,0.00022602,3]
[349431968,1737177040473,-452.63421148,0.00022602,3]
[349431969,1737177040483,-529.28,0.00022602,3]
[349431970,1737177040493,-957.61,0.00022602,3]
[349431971,1737177040502,-500.0,0.00022602,2]
[349431972,1737177040512,-1617.64,0.00022602,3]
[349431973,1737177040521,-531.83,0.00022602,3]
[349431974,1737177040530,-496.82,0.0002263,2]
[349431975,1737177040540,-500.0,0.00022739,3]
[349431976,1737177040551,-500.0,0.00022739,3]
[349431977,1737177040561,-517.63073903,0.00022739,3]
[349431978,1737177040570,-4035.25,0.00022739,3]
[349431979,1737177040580,-1436.15,0.00022739,3]
[349431980,1737177040590,-500.0,0.00022739,3]
[349431981,1737177040599,-500.0,0.00022739,3]
[349431982,1737177040608,-1989.67,0.00022739,3]
[349431983,1737177040618,-500.0,0.00022739,3]
[349431984,1737177040627,-500.0,0.00022739,3]
[349431985,1737177040637,-500.0,0.00022739,3]
[349431986,1737177040646,-500.0,0.00022739,3]
[349431987,1737177040656,-500.0,0.00022739,3]
[349431988,1737177040666,-367.45,0.00022739,3]
[349431989,1737177040676,-500.0,0.00022739,3]
[349431990,1737177040687,-529.28,0.00022739,3]
[349431991,1737177040696,-957.61,0.00022739,3]
[349431992,1737177040705,-500.0,0.00022739,2]
[349431993,1737177040714,-1617.64,0.00022739,3]
[349431994,1737177040724,-531.83,0.00022739,3]
[349431995,1737177040733,-500.0,0.00022876,3]
[349431996,1737177040743,-500.0,0.00022876,3]
[349431997,1737177040752,-4035.25,0.00022876,3]
[349431998,1737177040762,-1436.15,0.00022876,3]
[349431999,1737177040771,-500.0,0.00022876,3]
[349432000,1737177040780,-500.0,0.00022876,3]
[349432001,1737177040790,-1989.67,0.00022876,3]
[349432002,1737177040800,-500.0,0.00022876,3]
[349432003,1737177040810,-500.0,0.00022876,3]
[349432004,1737177040819,-298.80529159,0.00022876,3]
[349432005,1737177040832,-201.19470841,0.00022876,3]
[349432006,1737177040842,-113.11129609,0.00022876,3]
[349432007,1737177040856,-386.88870391,0.00022876,3]
[349432008,1737177040866,-500.0,0.00022876,3]
[349432009,1737177040875,-603.87446758,0.00022876,3]
[349432010,1737177040884,-529.28,0.00022876,3]
[349432011,1737177040895,-742.37617357,0.00022876,3]
[349432012,1737177040906,-215.23382643,0.00022876,3]
[349432013,1737177040915,-500.0,0.00022876,2]
[349432014,1737177040927,-1617.64,0.00022876,3]
[349432015,1737177040936,-531.83,0.00022876,3]
[349432016,1737177040946,-200.52377498,0.000229,2]
[349432017,1737177040955,-398.932164,0.00023,10]
[349432018,1737177040964,-7438.69753278,0.00023,3]
[349432019,1737177040973,-500.0,0.00023013,3]
[349432020,1737177041080,-500.0,0.00023013,3]
[349432021,1737177041090,-4035.25,0.00023013,3]
[349432022,1737177041099,-1436.15,0.00023013,3]
[349432023,1737177041108,-500.0,0.00023013,3]
[349432024,1737177041117,-364.74082638,0.00023013,3]
[349432025,1737177041127,-1989.67,0.00023013,3]
[349432026,1737177041136,-500.0,0.00023013,3]
[349432027,1737177041145,-500.0,0.00023013,3]
[349432028,1737177041154,-500.0,0.00023013,3]
[349432029,1737177041164,-500.0,0.00023013,3]
[349432030,1737177041174,-367.88077091,0.00023013,3]
[349432031,1737177041183,-529.28,0.00023013,3]
[349432032,1737177041192,-957.61,0.00023013,3]
[349432033,1737177041201,-500.0,0.00023013,2]
[349432034,1737177041210,-1617.64,0.00023013,3]
[349432035,1737177041219,-531.83,0.00023013,3]
[349432036,1737177041228,-617.3300334,0.0002315,3]